[Event "Titled Tuesday Blitz January 10 Early 2023"]
[White "Boros, Denes"]
[Black "Fiorito, Joaquin"]
[WhiteFideId "722340"]
[BlackFideId "180173"]
[WhiteElo "2406"]
[BlackElo "2405"]
[Result "1-0"]
[Round "05"]
[TimeControl "180+2"]
[Date "2023.01.10"]
[WhiteClock "0:00:16"]
[BlackClock "0:00:11"]

1. d4 {[%clk 0:03:00]}  Nf6 {[%clk 0:03:00]} 2. Nc3 {[%clk 0:03:01]}  d5 {[%clk 0:03:00]} 3. Nf3 {[%clk 0:03:02]}  a6 {[%clk 0:02:58]} 4. Bg5 {[%clk 0:03:01]}  e6 {[%clk 0:02:56]} 5. e4 {[%clk 0:03:01]}  Be7 {[%clk 0:02:52]} 6. e5 {[%clk 0:02:37]}  Nfd7 {[%clk 0:02:52]} 7. h4 {[%clk 0:02:38]}  h6 {[%clk 0:02:48]} 8. Bxe7 {[%clk 0:02:36]}  Qxe7 {[%clk 0:02:49]} 9. Qd2 {[%clk 0:02:34]}  c5 {[%clk 0:02:49]} 10. Ne2 {[%clk 0:02:29]}  Nc6 {[%clk 0:02:47]} 11. c3 {[%clk 0:02:28]}  b5 {[%clk 0:02:46]} 12. Nf4 {[%clk 0:02:28]}  Bb7 {[%clk 0:02:27]} 13. Be2 {[%clk 0:02:25]}  cxd4 {[%clk 0:02:28]} 14. cxd4 {[%clk 0:02:25]}  Qb4 {[%clk 0:02:27]} 15. Rc1 {[%clk 0:02:23]}  Qxd2+ {[%clk 0:02:26]} 16. Kxd2 {[%clk 0:02:22]}  Ke7 {[%clk 0:02:21]} 17. h5 {[%clk 0:02:15]}  Rhc8 {[%clk 0:02:19]} 18. Nd3 {[%clk 0:02:09]}  Na5 {[%clk 0:02:16]} 19. b3 {[%clk 0:02:06]}  Rxc1 {[%clk 0:02:06]} 20. Kxc1 {[%clk 0:02:07]}  Rc8+ {[%clk 0:02:07]} 21. Kd2 {[%clk 0:02:07]}  Nc6 {[%clk 0:01:50]} 22. Rh4 {[%clk 0:01:58]}  a5 {[%clk 0:01:47]} 23. Rg4 {[%clk 0:01:57]}  Kf8 {[%clk 0:01:44]} 24. Rf4 {[%clk 0:01:55]}  b4 {[%clk 0:01:37]} 25. g4 {[%clk 0:01:47]}  Ke7 {[%clk 0:01:14]} 26. g5 {[%clk 0:01:47]}  hxg5 {[%clk 0:01:10]} 27. Nxg5 {[%clk 0:01:48]}  f6 {[%clk 0:01:07]} 28. Nf3 {[%clk 0:01:25]}  Ba6 {[%clk 0:00:59]} 29. Rg4 {[%clk 0:01:08]}  Kf7 {[%clk 0:00:52]} 30. exf6 {[%clk 0:00:54]}  gxf6 {[%clk 0:00:52]} 31. h6 {[%clk 0:00:54]}  Rg8 {[%clk 0:00:39]} 32. Rh4 {[%clk 0:00:50]}  Rh8 {[%clk 0:00:36]} 33. h7 {[%clk 0:00:40]}  Kg7 {[%clk 0:00:34]} 34. Nf4 {[%clk 0:00:38]}  Bxe2 {[%clk 0:00:32]} 35. Kxe2 {[%clk 0:00:39]}  Nf8 {[%clk 0:00:28]} 36. Rg4+ {[%clk 0:00:39]}  Kf7 {[%clk 0:00:28]} 37. Rg1 {[%clk 0:00:36]}  Nxh7 {[%clk 0:00:23]} 38. Rh1 {[%clk 0:00:32]}  Kg7 {[%clk 0:00:16]} 39. Nxe6+ {[%clk 0:00:24]}  Kf7 {[%clk 0:00:16]} 40. Nf4 {[%clk 0:00:24]}  Re8+ {[%clk 0:00:17]} 41. Kd3 {[%clk 0:00:25]}  Nf8 {[%clk 0:00:15]} 42. Nxd5 {[%clk 0:00:24]}  Rd8 {[%clk 0:00:15]} 43. Ne3 {[%clk 0:00:21]}  Ne6 {[%clk 0:00:14]} 44. d5 {[%clk 0:00:21]}  Nc7 {[%clk 0:00:14]} 45. Kc4 {[%clk 0:00:21]}  Ne7 {[%clk 0:00:14]} 46. Rh7+ {[%clk 0:00:20]}  Ke8 {[%clk 0:00:13]} 47. Kc5 {[%clk 0:00:15]}  Ncxd5 {[%clk 0:00:12]} 48. Rh8+ {[%clk 0:00:15]}  Kf7 {[%clk 0:00:11]} 49. Rxd8 {[%clk 0:00:16]} 1-0


[Site "https://www.chess.com"]

[Event "Titled Tuesday Blitz January 10 Early 2023"]
[White "Mahdavi, Reza"]
[Black "Derjabin, Ilja"]
[WhiteFideId "12595926"]
[BlackFideId "14104768"]
[WhiteElo "2339"]
[BlackElo "2333"]
[Result "1-0"]
[Round "05"]
[TimeControl "180+2"]
[Date "2023.01.10"]
[WhiteClock "0:00:36"]
[BlackClock "0:00:02"]

1. e4 {[%clk 0:03:00]}  e6 {[%clk 0:02:24]} 2. d4 {[%clk 0:02:59]}  d5 {[%clk 0:02:25]} 3. Nc3 {[%clk 0:02:58]}  Nf6 {[%clk 0:02:24]} 4. e5 {[%clk 0:02:58]}  Ne4 {[%clk 0:02:24]} 5. Nxe4 {[%clk 0:02:54]}  dxe4 {[%clk 0:02:25]} 6. Bc4 {[%clk 0:02:55]}  a6 {[%clk 0:02:25]} 7. Ne2 {[%clk 0:02:55]}  b5 {[%clk 0:02:26]} 8. Bb3 {[%clk 0:02:55]}  c5 {[%clk 0:02:25]} 9. c3 {[%clk 0:02:56]}  cxd4 {[%clk 0:02:21]} 10. cxd4 {[%clk 0:02:56]}  Bb4+ {[%clk 0:02:09]} 11. Bd2 {[%clk 0:02:56]}  Nc6 {[%clk 0:02:10]} 12. Bxb4 {[%clk 0:02:45]}  Nxb4 {[%clk 0:02:09]} 13. O-O {[%clk 0:02:45]}  Bb7 {[%clk 0:02:05]} 14. a3 {[%clk 0:02:42]}  Nd3 {[%clk 0:02:02]} 15. Rb1 {[%clk 0:02:40]}  O-O {[%clk 0:01:51]} 16. Bc2 {[%clk 0:02:40]}  Qd5 {[%clk 0:01:43]} 17. f3 {[%clk 0:02:11]}  f5 {[%clk 0:01:26]} 18. Bxd3 {[%clk 0:02:06]}  exd3 {[%clk 0:01:26]} 19. Qxd3 {[%clk 0:02:07]}  Rfd8 {[%clk 0:01:13]} 20. Qe3 {[%clk 0:01:53]}  Rac8 {[%clk 0:01:08]} 21. Rbc1 {[%clk 0:01:53]}  h6 {[%clk 0:01:03]} 22. Rxc8 {[%clk 0:01:52]}  Rxc8 {[%clk 0:01:02]} 23. Rc1 {[%clk 0:01:52]}  Rd8 {[%clk 0:00:57]} 24. Kf2 {[%clk 0:01:37]}  a5 {[%clk 0:00:38]} 25. Rc5 {[%clk 0:01:25]}  Qd7 {[%clk 0:00:35]} 26. Qc3 {[%clk 0:01:19]}  Bd5 {[%clk 0:00:32]} 27. Qxa5 {[%clk 0:01:19]}  Bc4 {[%clk 0:00:27]} 28. Qc7 {[%clk 0:01:02]}  Qe8 {[%clk 0:00:18]} 29. Rxc4 {[%clk 0:00:56]}  bxc4 {[%clk 0:00:18]} 30. Qxc4 {[%clk 0:00:57]}  Qe7 {[%clk 0:00:13]} 31. g3 {[%clk 0:00:52]}  Kh7 {[%clk 0:00:11]} 32. Nf4 {[%clk 0:00:52]}  Qa7 {[%clk 0:00:10]} 33. Nxe6 {[%clk 0:00:52]}  Rb8 {[%clk 0:00:08]} 34. Qc2 {[%clk 0:00:46]}  Qa5 {[%clk 0:00:04]} 35. Qxf5+ {[%clk 0:00:45]}  Kh8 {[%clk 0:00:04]} 36. Qc2 {[%clk 0:00:43]}  Qb6 {[%clk 0:00:05]} 37. Nc5 {[%clk 0:00:41]}  Qxb2 {[%clk 0:00:05]} 38. Qxb2 {[%clk 0:00:42]}  Rxb2+ {[%clk 0:00:06]} 39. Ke3 {[%clk 0:00:43]}  Ra2 {[%clk 0:00:06]} 40. a4 {[%clk 0:00:43]}  Rxh2 {[%clk 0:00:06]} 41. d5 {[%clk 0:00:43]}  Kg8 {[%clk 0:00:07]} 42. d6 {[%clk 0:00:43]}  Kf8 {[%clk 0:00:07]} 43. e6 {[%clk 0:00:42]}  Rc2 {[%clk 0:00:05]} 44. Kd4 {[%clk 0:00:41]}  Rd2+ {[%clk 0:00:03]} 45. Ke5 {[%clk 0:00:41]}  Re2+ {[%clk 0:00:04]} 46. Kd5 {[%clk 0:00:42]}  Rd2+ {[%clk 0:00:04]} 47. Kc6 {[%clk 0:00:42]}  g5 {[%clk 0:00:04]} 48. a5 {[%clk 0:00:42]}  h5 {[%clk 0:00:04]} 49. a6 {[%clk 0:00:40]}  h4 {[%clk 0:00:05]} 50. gxh4 {[%clk 0:00:41]}  gxh4 {[%clk 0:00:05]} 51. Kc7 {[%clk 0:00:39]}  Rc2 {[%clk 0:00:04]} 52. a7 {[%clk 0:00:39]}  Ra2 {[%clk 0:00:03]} 53. d7 {[%clk 0:00:36]}  h3 {[%clk 0:00:02]} 54. d8=Q+ {[%clk 0:00:36]} 1-0


[Site "https://www.chess.com"]

[Event "Titled Tuesday Blitz January 10 Early 2023"]
[White "Bazarov, Konstantin"]
[Black "Bilych, Olexiy"]
[WhiteFideId "4137000"]
[BlackFideId "14156504"]
[WhiteElo "2235"]
[BlackElo "2441"]
[Result "1-0"]
[Round "05"]
[TimeControl "180+2"]
[Date "2023.01.10"]
[WhiteClock "0:00:32"]
[BlackClock "0:00:27"]

1. d4 {[%clk 0:03:00]}  Nf6 {[%clk 0:03:00]} 2. c4 {[%clk 0:02:58]}  e6 {[%clk 0:03:00]} 3. Nc3 {[%clk 0:02:54]}  Bb4 {[%clk 0:02:59]} 4. f3 {[%clk 0:02:54]}  O-O {[%clk 0:02:56]} 5. Bg5 {[%clk 0:02:48]}  h6 {[%clk 0:02:53]} 6. Bh4 {[%clk 0:02:47]}  c5 {[%clk 0:02:53]} 7. a3 {[%clk 0:02:46]}  Bxc3+ {[%clk 0:02:47]} 8. bxc3 {[%clk 0:02:45]}  d6 {[%clk 0:02:36]} 9. e3 {[%clk 0:02:39]}  b6 {[%clk 0:02:34]} 10. Bd3 {[%clk 0:02:36]}  Nc6 {[%clk 0:02:33]} 11. Ne2 {[%clk 0:02:35]}  Bb7 {[%clk 0:02:29]} 12. O-O {[%clk 0:02:34]}  Rc8 {[%clk 0:02:29]} 13. Rc1 {[%clk 0:02:32]}  Na5 {[%clk 0:02:28]} 14. e4 {[%clk 0:02:26]}  e5 {[%clk 0:02:13]} 15. f4 {[%clk 0:02:01]}  exf4 {[%clk 0:01:52]} 16. Nxf4 {[%clk 0:01:49]}  g5 {[%clk 0:01:44]} 17. e5 {[%clk 0:01:47]}  dxe5 {[%clk 0:01:34]} 18. dxe5 {[%clk 0:01:45]}  Ne4 {[%clk 0:01:33]} 19. Qe2 {[%clk 0:01:35]}  gxh4 {[%clk 0:01:12]} 20. Bxe4 {[%clk 0:01:30]}  Bxe4 {[%clk 0:01:13]} 21. Qxe4 {[%clk 0:01:29]}  Qg5 {[%clk 0:01:14]} 22. e6 {[%clk 0:01:20]}  fxe6 {[%clk 0:01:02]} 23. Nxe6 {[%clk 0:01:16]}  Rxf1+ {[%clk 0:00:43]} 24. Rxf1 {[%clk 0:01:12]}  Qh5 {[%clk 0:00:36]} 25. Nf4 {[%clk 0:00:33]}  Re8 {[%clk 0:00:27]} 26. Nxh5 {[%clk 0:00:32]} 1-0


[Site "https://www.chess.com"]

[Event "Titled Tuesday Blitz January 10 Early 2023"]
[White "Najdin, Danil"]
[Black "Boruchovsky, Avital"]
[WhiteFideId "4172426"]
[BlackFideId "2800055"]
[WhiteElo "2235"]
[BlackElo "2539"]
[Result "1-0"]
[Round "05"]
[TimeControl "180+2"]
[Date "2023.01.10"]
[WhiteClock "0:00:05"]
[BlackClock "0:00:13"]

1. e4 {[%clk 0:03:00]}  e5 {[%clk 0:02:57]} 2. Nf3 {[%clk 0:02:59]}  Nc6 {[%clk 0:02:57]} 3. Nc3 {[%clk 0:02:59]}  g6 {[%clk 0:02:56]} 4. d4 {[%clk 0:02:57]}  exd4 {[%clk 0:02:57]} 5. Nd5 {[%clk 0:02:55]}  Bg7 {[%clk 0:02:55]} 6. Bg5 {[%clk 0:02:54]}  Nce7 {[%clk 0:02:55]} 7. Nxd4 {[%clk 0:02:47]}  c6 {[%clk 0:02:53]} 8. Nc3 {[%clk 0:02:30]}  h6 {[%clk 0:02:53]} 9. Bh4 {[%clk 0:02:29]}  g5 {[%clk 0:02:53]} 10. Bg3 {[%clk 0:02:29]}  d5 {[%clk 0:02:54]} 11. e5 {[%clk 0:02:19]}  Ng6 {[%clk 0:02:45]} 12. Qe2 {[%clk 0:01:29]}  N8e7 {[%clk 0:02:39]} 13. O-O-O {[%clk 0:01:29]}  Qb6 {[%clk 0:02:32]} 14. h4 {[%clk 0:01:25]}  gxh4 {[%clk 0:02:30]} 15. Bxh4 {[%clk 0:01:25]}  Nxh4 {[%clk 0:02:31]} 16. Rxh4 {[%clk 0:01:25]}  Ng6 {[%clk 0:02:31]} 17. Rh1 {[%clk 0:01:06]}  O-O {[%clk 0:02:27]} 18. Qh5 {[%clk 0:00:49]}  Qd8 {[%clk 0:02:17]} 19. Nf3 {[%clk 0:00:45]}  Re8 {[%clk 0:02:07]} 20. Re1 {[%clk 0:00:40]}  d4 {[%clk 0:01:59]} 21. Bc4 {[%clk 0:00:35]}  dxc3 {[%clk 0:01:51]} 22. Qxg6 {[%clk 0:00:34]}  cxb2+ {[%clk 0:01:40]} 23. Kb1 {[%clk 0:00:35]}  Be6 {[%clk 0:01:39]} 24. Qe4 {[%clk 0:00:33]}  Bxc4 {[%clk 0:01:29]} 25. Qxc4 {[%clk 0:00:33]}  Re6 {[%clk 0:01:23]} 26. Nd4 {[%clk 0:00:30]}  Rxe5 {[%clk 0:01:20]} 27. Rxe5 {[%clk 0:00:28]}  Bxe5 {[%clk 0:01:21]} 28. Nf5 {[%clk 0:00:28]}  Qd7 {[%clk 0:00:35]} 29. Qg4+ {[%clk 0:00:21]}  Kf8 {[%clk 0:00:34]} 30. Rxh6 {[%clk 0:00:17]}  Rd8 {[%clk 0:00:30]} 31. Rh1 {[%clk 0:00:17]}  Qd2 {[%clk 0:00:24]} 32. g3 {[%clk 0:00:09]}  Rd5 {[%clk 0:00:22]} 33. Qh5 {[%clk 0:00:05]}  Bg7 {[%clk 0:00:16]} 34. Qh8+ {[%clk 0:00:04]}  Bxh8 {[%clk 0:00:13]} 35. Rxh8# {[%clk 0:00:05]} 1-0


[Site "https://www.chess.com"]

[Event "Titled Tuesday Blitz January 10 Early 2023"]
[White "Arjun, Kalyan"]
[Black "Moskvin, Anatoly"]
[WhiteFideId "35018701"]
[BlackFideId "24199990"]
[WhiteElo "2516"]
[BlackElo "2189"]
[Result "1-0"]
[Round "05"]
[TimeControl "180+2"]
[Date "2023.01.10"]
[WhiteClock "0:00:38"]
[BlackClock "0:00:03"]

1. d4 {[%clk 0:02:55]}  d5 {[%clk 0:02:58]} 2. Nf3 {[%clk 0:02:55]}  c5 {[%clk 0:02:57]} 3. e3 {[%clk 0:02:55]}  Nf6 {[%clk 0:02:56]} 4. b3 {[%clk 0:02:51]}  e6 {[%clk 0:02:49]} 5. Bb2 {[%clk 0:02:50]}  Nbd7 {[%clk 0:02:50]} 6. Nbd2 {[%clk 0:02:50]}  b6 {[%clk 0:02:50]} 7. Bd3 {[%clk 0:02:49]}  Bb7 {[%clk 0:02:49]} 8. O-O {[%clk 0:02:49]}  Be7 {[%clk 0:02:42]} 9. dxc5 {[%clk 0:02:37]}  bxc5 {[%clk 0:02:26]} 10. c4 {[%clk 0:02:36]}  O-O {[%clk 0:02:25]} 11. Rc1 {[%clk 0:02:34]}  Qa5 {[%clk 0:02:23]} 12. Bc3 {[%clk 0:02:23]}  Qb6 {[%clk 0:02:17]} 13. Qe2 {[%clk 0:02:23]}  Rfe8 {[%clk 0:01:56]} 14. Rfd1 {[%clk 0:02:22]}  Bf8 {[%clk 0:01:51]} 15. Nf1 {[%clk 0:02:12]}  e5 {[%clk 0:01:35]} 16. Bb1 {[%clk 0:02:07]}  d4 {[%clk 0:01:34]} 17. Bb2 {[%clk 0:02:05]}  e4 {[%clk 0:01:22]} 18. Ne1 {[%clk 0:02:05]}  d3 {[%clk 0:01:19]} 19. Qd2 {[%clk 0:02:05]}  Ne5 {[%clk 0:01:11]} 20. Ng3 {[%clk 0:02:03]}  h5 {[%clk 0:01:04]} 21. h3 {[%clk 0:01:52]}  Qe6 {[%clk 0:01:01]} 22. Qc3 {[%clk 0:01:36]}  Bd6 {[%clk 0:00:51]} 23. a3 {[%clk 0:01:25]}  h4 {[%clk 0:00:50]} 24. Nf1 {[%clk 0:01:24]}  Bc7 {[%clk 0:00:49]} 25. b4 {[%clk 0:01:21]}  Ned7 {[%clk 0:00:17]} 26. Qd2 {[%clk 0:01:14]}  Qd6 {[%clk 0:00:16]} 27. f4 {[%clk 0:01:09]}  exf3 {[%clk 0:00:16]} 28. gxf3 {[%clk 0:01:05]}  Qe6 {[%clk 0:00:15]} 29. Qg2 {[%clk 0:01:01]}  Be5 {[%clk 0:00:11]} 30. Nxd3 {[%clk 0:00:57]}  Bxb2 {[%clk 0:00:11]} 31. Nxb2 {[%clk 0:00:58]}  cxb4 {[%clk 0:00:10]} 32. axb4 {[%clk 0:00:57]}  Ne5 {[%clk 0:00:11]} 33. e4 {[%clk 0:00:54]}  Ng6 {[%clk 0:00:11]} 34. Nd3 {[%clk 0:00:51]}  Qb6+ {[%clk 0:00:12]} 35. c5 {[%clk 0:00:51]}  Qc7 {[%clk 0:00:12]} 36. Qh2 {[%clk 0:00:49]}  Qe7 {[%clk 0:00:09]} 37. Ne3 {[%clk 0:00:49]}  a6 {[%clk 0:00:09]} 38. Nf5 {[%clk 0:00:49]}  Qe6 {[%clk 0:00:09]} 39. Nd6 {[%clk 0:00:49]}  Re7 {[%clk 0:00:09]} 40. Ba2 {[%clk 0:00:46]}  Qd7 {[%clk 0:00:07]} 41. Kh1 {[%clk 0:00:44]}  Qc7 {[%clk 0:00:07]} 42. Rg1 {[%clk 0:00:44]}  Rd8 {[%clk 0:00:05]} 43. Nf4 {[%clk 0:00:43]}  Nxf4 {[%clk 0:00:03]} 44. Qxf4 {[%clk 0:00:43]}  Kf8 {[%clk 0:00:03]} 45. Rg5 {[%clk 0:00:39]}  Re6 {[%clk 0:00:03]} 46. Rcg1 {[%clk 0:00:39]}  Rd7 {[%clk 0:00:03]} 47. Bxe6 {[%clk 0:00:38]}  Qxd6 {[%clk 0:00:03]} 48. cxd6 {[%clk 0:00:38]} 1-0


[Site "https://www.chess.com"]

[Event "Titled Tuesday Blitz January 10 Early 2023"]
[White "Sai Han Thiha"]
[Black "Preotu, Razvan"]
[WhiteFideId "13012290"]
[BlackFideId "2613280"]
[WhiteElo "2070"]
[BlackElo "2475"]
[Result "0-1"]
[Round "05"]
[TimeControl "180+2"]
[Date "2023.01.10"]
[WhiteClock "0:00:03"]
[BlackClock "0:00:30"]

1. d4 {[%clk 0:02:56]}  Nf6 {[%clk 0:03:00]} 2. c4 {[%clk 0:02:56]}  g6 {[%clk 0:03:00]} 3. Nc3 {[%clk 0:02:56]}  d5 {[%clk 0:03:00]} 4. Nf3 {[%clk 0:02:56]}  Bg7 {[%clk 0:03:00]} 5. Qb3 {[%clk 0:02:57]}  dxc4 {[%clk 0:03:00]} 6. Qxc4 {[%clk 0:02:58]}  O-O {[%clk 0:03:00]} 7. e4 {[%clk 0:02:58]}  a6 {[%clk 0:03:01]} 8. Be2 {[%clk 0:02:58]}  b5 {[%clk 0:03:02]} 9. Qb3 {[%clk 0:02:59]}  c5 {[%clk 0:03:02]} 10. dxc5 {[%clk 0:03:00]}  Be6 {[%clk 0:03:03]} 11. Qc2 {[%clk 0:02:20]}  Nbd7 {[%clk 0:03:02]} 12. Be3 {[%clk 0:01:56]}  Rc8 {[%clk 0:03:02]} 13. Rd1 {[%clk 0:01:52]}  b4 {[%clk 0:03:02]} 14. Nd5 {[%clk 0:01:49]}  Bxd5 {[%clk 0:03:03]} 15. exd5 {[%clk 0:01:48]}  Nxc5 {[%clk 0:03:03]} 16. Bc4 {[%clk 0:01:42]}  Qa5 {[%clk 0:02:27]} 17. O-O {[%clk 0:01:34]}  Na4 {[%clk 0:02:27]} 18. Bd4 {[%clk 0:00:23]}  Ne8 {[%clk 0:01:56]} 19. Bxg7 {[%clk 0:00:22]}  Nxg7 {[%clk 0:01:57]} 20. b3 {[%clk 0:00:16]}  Nc3 {[%clk 0:01:53]} 21. Rd2 {[%clk 0:00:16]}  Nf5 {[%clk 0:01:52]} 22. Re1 {[%clk 0:00:15]}  Nxd5 {[%clk 0:01:05]} 23. Qe4 {[%clk 0:00:02]}  e6 {[%clk 0:01:04]} 24. Bxd5 {[%clk 0:00:02]}  exd5 {[%clk 0:01:05]} 25. Qxd5 {[%clk 0:00:02]}  Qb6 {[%clk 0:00:46]} 26. Qd3 {[%clk 0:00:02]}  Rfd8 {[%clk 0:00:42]} 27. Qe2 {[%clk 0:00:02]}  Rxd2 {[%clk 0:00:40]} 28. Qxd2 {[%clk 0:00:03]}  Qc5 {[%clk 0:00:37]} 29. Qe2 {[%clk 0:00:03]}  a5 {[%clk 0:00:36]} 30. h3 {[%clk 0:00:03]}  Qc2 {[%clk 0:00:32]} 31. g4 {[%clk 0:00:03]}  Ng7 {[%clk 0:00:30]} 32. Kg2 {[%clk 0:00:04]}  Ne6 {[%clk 0:00:30]} 33. Ne5 {[%clk 0:00:03]}  Nf4+ {[%clk 0:00:30]} 0-1


[Site "https://www.chess.com"]

[Event "Titled Tuesday Blitz January 10 Early 2023"]
[White "Golizadeh, Asghar"]
[Black "Putnam, Liam"]
[WhiteFideId "12505269"]
[BlackFideId "30938279"]
[WhiteElo "2455"]
[BlackElo "2285"]
[Result "0-1"]
[Round "05"]
[TimeControl "180+2"]
[Date "2023.01.10"]
[WhiteClock "0:00:02"]
[BlackClock "0:00:19"]

1. e4 {[%clk 0:03:00]}  e5 {[%clk 0:02:45]} 2. Bc4 {[%clk 0:02:59]}  Nf6 {[%clk 0:02:40]} 3. d3 {[%clk 0:02:59]}  c6 {[%clk 0:02:40]} 4. Nf3 {[%clk 0:02:55]}  d5 {[%clk 0:02:36]} 5. Bb3 {[%clk 0:02:55]}  Bd6 {[%clk 0:02:36]} 6. exd5 {[%clk 0:02:53]}  cxd5 {[%clk 0:02:36]} 7. Nc3 {[%clk 0:02:45]}  O-O {[%clk 0:02:23]} 8. O-O {[%clk 0:02:44]}  d4 {[%clk 0:02:08]} 9. Nb5 {[%clk 0:02:41]}  Nc6 {[%clk 0:01:56]} 10. Nxd6 {[%clk 0:02:39]}  Qxd6 {[%clk 0:01:57]} 11. Nd2 {[%clk 0:02:37]}  Bf5 {[%clk 0:01:51]} 12. f4 {[%clk 0:02:33]}  e4 {[%clk 0:01:46]} 13. dxe4 {[%clk 0:02:25]}  Nxe4 {[%clk 0:01:47]} 14. Nxe4 {[%clk 0:02:22]}  Bxe4 {[%clk 0:01:48]} 15. Re1 {[%clk 0:02:22]}  Qg6 {[%clk 0:01:44]} 16. g3 {[%clk 0:02:08]}  Rfe8 {[%clk 0:01:32]} 17. Bd2 {[%clk 0:02:05]}  Rad8 {[%clk 0:01:31]} 18. Qe2 {[%clk 0:01:52]}  d3 {[%clk 0:01:21]} 19. cxd3 {[%clk 0:01:51]}  Nd4 {[%clk 0:01:22]} 20. Qe3 {[%clk 0:01:11]}  Nf3+ {[%clk 0:00:59]} 21. Kf2 {[%clk 0:01:10]}  Nxe1 {[%clk 0:00:54]} 22. Rxe1 {[%clk 0:01:08]}  Bc6 {[%clk 0:00:54]} 23. Qxa7 {[%clk 0:00:59]}  Qxd3 {[%clk 0:00:52]} 24. Be3 {[%clk 0:00:21]}  Qe4 {[%clk 0:00:50]} 25. Re2 {[%clk 0:00:20]}  Qg2+ {[%clk 0:00:45]} 26. Ke1 {[%clk 0:00:21]}  Qh1+ {[%clk 0:00:45]} 27. Bg1 {[%clk 0:00:17]}  Rxe2+ {[%clk 0:00:45]} 28. Kxe2 {[%clk 0:00:18]}  Qf3+ {[%clk 0:00:44]} 29. Ke1 {[%clk 0:00:18]}  Re8+ {[%clk 0:00:45]} 30. Kd2 {[%clk 0:00:17]}  Re2+ {[%clk 0:00:45]} 31. Kc1 {[%clk 0:00:15]}  Re1+ {[%clk 0:00:39]} 32. Kd2 {[%clk 0:00:11]}  Qe2+ {[%clk 0:00:38]} 33. Kc3 {[%clk 0:00:11]}  Rc1+ {[%clk 0:00:39]} 34. Kb4 {[%clk 0:00:11]}  Qe4+ {[%clk 0:00:35]} 35. Bd4 {[%clk 0:00:07]}  Qe7+ {[%clk 0:00:28]} 36. Bc5 {[%clk 0:00:07]}  Qe8 {[%clk 0:00:20]} 37. Qb6 {[%clk 0:00:05]}  h6 {[%clk 0:00:19]} 38. a4 {[%clk 0:00:05]}  Ra1 {[%clk 0:00:18]} 39. a5 {[%clk 0:00:02]}  Qe4+ {[%clk 0:00:18]} 40. Bc4 {[%clk 0:00:01]}  Ra4+ {[%clk 0:00:17]} 41. Kc3 {[%clk 0:00:02]}  Qxc4+ {[%clk 0:00:18]} 42. Kd2 {[%clk 0:00:02]}  Qd5+ {[%clk 0:00:19]} 0-1


[Site "https://www.chess.com"]

[Event "Titled Tuesday Blitz January 10 Early 2023"]
[White "Gledura, Benjamin"]
[Black "Torres Dominguez, David"]
[WhiteFideId "712779"]
[BlackFideId "2220857"]
[WhiteElo "2644"]
[BlackElo "1994"]
[Result "1/2-1/2"]
[Round "05"]
[TimeControl "180+2"]
[Date "2023.01.10"]
[WhiteClock "0:00:47"]
[BlackClock "0:00:07"]

1. e4 {[%clk 0:03:00]}  Nc6 {[%clk 0:02:55]} 2. Nf3 {[%clk 0:02:59]}  e5 {[%clk 0:02:55]} 3. Bc4 {[%clk 0:02:59]}  Bc5 {[%clk 0:02:54]} 4. d3 {[%clk 0:02:59]}  Nf6 {[%clk 0:02:52]} 5. O-O {[%clk 0:02:59]}  d6 {[%clk 0:02:51]} 6. c3 {[%clk 0:02:59]}  a6 {[%clk 0:02:50]} 7. Nbd2 {[%clk 0:02:56]}  Ba7 {[%clk 0:02:50]} 8. Bb3 {[%clk 0:02:56]}  h6 {[%clk 0:02:48]} 9. Re1 {[%clk 0:02:55]}  g5 {[%clk 0:02:47]} 10. Nf1 {[%clk 0:02:55]}  g4 {[%clk 0:02:42]} 11. N3d2 {[%clk 0:02:45]}  h5 {[%clk 0:02:28]} 12. Nc4 {[%clk 0:02:44]}  h4 {[%clk 0:02:24]} 13. Be3 {[%clk 0:02:41]}  h3 {[%clk 0:02:16]} 14. g3 {[%clk 0:02:40]}  b5 {[%clk 0:02:11]} 15. Bxa7 {[%clk 0:02:32]}  bxc4 {[%clk 0:02:07]} 16. Ba4 {[%clk 0:02:32]}  Bd7 {[%clk 0:01:52]} 17. Be3 {[%clk 0:02:32]}  cxd3 {[%clk 0:01:46]} 18. Qxd3 {[%clk 0:02:33]}  Rg8 {[%clk 0:01:34]} 19. b4 {[%clk 0:02:26]}  Qb8 {[%clk 0:01:31]} 20. Bb3 {[%clk 0:02:24]}  Nd8 {[%clk 0:01:28]} 21. a4 {[%clk 0:02:17]}  Ne6 {[%clk 0:01:27]} 22. Nd2 {[%clk 0:02:16]}  Ng5 {[%clk 0:01:22]} 23. Bxg5 {[%clk 0:02:15]}  Rxg5 {[%clk 0:01:22]} 24. Bd5 {[%clk 0:02:11]}  Nxd5 {[%clk 0:01:16]} 25. exd5 {[%clk 0:02:11]}  Rg6 {[%clk 0:01:13]} 26. Nc4 {[%clk 0:01:58]}  Kf8 {[%clk 0:01:08]} 27. Rf1 {[%clk 0:01:47]}  Qd8 {[%clk 0:01:00]} 28. f3 {[%clk 0:01:46]}  gxf3 {[%clk 0:00:58]} 29. Rxf3 {[%clk 0:01:47]}  Kg8 {[%clk 0:00:51]} 30. Raf1 {[%clk 0:01:47]}  f5 {[%clk 0:00:47]} 31. Qe2 {[%clk 0:01:30]}  Qg5 {[%clk 0:00:44]} 32. Kh1 {[%clk 0:01:26]}  f4 {[%clk 0:00:39]} 33. Qd2 {[%clk 0:01:20]}  Re8 {[%clk 0:00:30]} 34. Rg1 {[%clk 0:01:13]}  e4 {[%clk 0:00:24]} 35. Rxf4 {[%clk 0:01:12]}  e3 {[%clk 0:00:22]} 36. Nxe3 {[%clk 0:01:10]}  Rxe3 {[%clk 0:00:17]} 37. Rgf1 {[%clk 0:00:55]}  Re8 {[%clk 0:00:08]} 38. c4 {[%clk 0:00:56]}  Rg7 {[%clk 0:00:04]} 39. Kg1 {[%clk 0:00:55]}  Qe5 {[%clk 0:00:04]} 40. Qf2 {[%clk 0:00:50]}  Qe3 {[%clk 0:00:03]} 41. b5 {[%clk 0:00:49]}  Qxf2+ {[%clk 0:00:02]} 42. Kxf2 {[%clk 0:00:49]}  axb5 {[%clk 0:00:03]} 43. axb5 {[%clk 0:00:49]}  Ra8 {[%clk 0:00:02]} 44. Re1 {[%clk 0:00:49]}  Ra2+ {[%clk 0:00:02]} 45. Re2 {[%clk 0:00:49]}  Rxe2+ {[%clk 0:00:02]} 46. Kxe2 {[%clk 0:00:50]}  Re7+ {[%clk 0:00:02]} 47. Kd2 {[%clk 0:00:48]}  Rf7 {[%clk 0:00:02]} 48. Ke3 {[%clk 0:00:48]}  Rxf4 {[%clk 0:00:02]} 49. Kxf4 {[%clk 0:00:48]}  Kg7 {[%clk 0:00:02]} 50. Ke4 {[%clk 0:00:42]}  Kg6 {[%clk 0:00:02]} 51. Kd4 {[%clk 0:00:41]}  Kf6 {[%clk 0:00:03]} 52. c5 {[%clk 0:00:42]}  dxc5+ {[%clk 0:00:02]} 53. Kxc5 {[%clk 0:00:43]}  Ke7 {[%clk 0:00:02]} 54. g4 {[%clk 0:00:39]}  Bxg4 {[%clk 0:00:01]} 55. Kc6 {[%clk 0:00:37]}  Kd8 {[%clk 0:00:01]} 56. d6 {[%clk 0:00:37]}  cxd6 {[%clk 0:00:01]} 57. Kxd6 {[%clk 0:00:37]}  Bf3 {[%clk 0:00:01]} 58. Ke5 {[%clk 0:00:35]}  Kc8 {[%clk 0:00:01]} 59. Kf4 {[%clk 0:00:36]}  Bg2 {[%clk 0:00:02]} 60. Kg3 {[%clk 0:00:34]}  Kb7 {[%clk 0:00:03]} 61. Kf2 {[%clk 0:00:35]}  Kb6 {[%clk 0:00:03]} 62. Kg1 {[%clk 0:00:36]}  Kxb5 {[%clk 0:00:04]} 63. Kf2 {[%clk 0:00:37]}  Kc5 {[%clk 0:00:03]} 64. Kg1 {[%clk 0:00:37]}  Kd4 {[%clk 0:00:04]} 65. Kf2 {[%clk 0:00:38]}  Ke4 {[%clk 0:00:04]} 66. Kg1 {[%clk 0:00:39]}  Kf4 {[%clk 0:00:05]} 67. Kf2 {[%clk 0:00:40]}  Kg4 {[%clk 0:00:05]} 68. Kg1 {[%clk 0:00:41]}  Be4 {[%clk 0:00:05]} 69. Kf2 {[%clk 0:00:42]}  Kf4 {[%clk 0:00:05]} 70. Kg1 {[%clk 0:00:43]}  Kf3 {[%clk 0:00:06]} 71. Kf1 {[%clk 0:00:43]}  Bf5 {[%clk 0:00:06]} 72. Kg1 {[%clk 0:00:44]}  Bg4 {[%clk 0:00:06]} 73. Kf1 {[%clk 0:00:45]}  Ke3 {[%clk 0:00:06]} 74. Kg1 {[%clk 0:00:45]}  Bf3 {[%clk 0:00:06]} 75. Kf1 {[%clk 0:00:46]}  Bg2+ {[%clk 0:00:07]} 76. Kg1 {[%clk 0:00:47]}  Kf3 {[%clk 0:00:07]} 1/2-1/2


[Site "https://www.chess.com"]